[Event "Titled Tuesday Blitz May 4 2021"]
[White "Bartel, Michal"]
[Black "Amorim, Daniel Madson De Medeiro"]
[WhiteFideId "1119257"]
[BlackFideId "2124912"]
[WhiteElo "2271"]
[BlackElo "2179"]
[Result "0-1"]
[Round "01"]
[TimeControl "180+1"]
[Date "2021.05.04"]
[WhiteClock "0:00:12"]
[BlackClock "0:00:18"]

1. e4 {[%clk 0:03:00]}  e6 {[%clk 0:03:00]} 2. d4 {[%clk 0:02:59]}  d5 {[%clk 0:03:00]} 3. Nc3 {[%clk 0:02:56]}  Nf6 {[%clk 0:02:58]} 4. e5 {[%clk 0:02:56]}  Nfd7 {[%clk 0:02:57]} 5. Nce2 {[%clk 0:02:57]}  c5 {[%clk 0:02:57]} 6. c3 {[%clk 0:02:58]}  Nc6 {[%clk 0:02:57]} 7. Nf3 {[%clk 0:02:58]}  Be7 {[%clk 0:02:57]} 8. g3 {[%clk 0:02:58]}  O-O {[%clk 0:02:56]} 9. h4 {[%clk 0:02:58]}  f6 {[%clk 0:02:55]} 10. Nf4 {[%clk 0:02:57]}  Nb6 {[%clk 0:02:49]} 11. exf6 {[%clk 0:02:47]}  Rxf6 {[%clk 0:02:45]} 12. Bh3 {[%clk 0:02:36]}  Qc7 {[%clk 0:02:42]} 13. O-O {[%clk 0:02:25]}  Bd7 {[%clk 0:02:28]} 14. Re1 {[%clk 0:02:25]}  Raf8 {[%clk 0:02:26]} 15. Ng5 {[%clk 0:02:14]}  e5 {[%clk 0:02:07]} 16. Bxd7 {[%clk 0:02:09]}  Qxd7 {[%clk 0:02:03]} 17. dxe5 {[%clk 0:02:07]}  Rf5 {[%clk 0:01:59]} 18. e6 {[%clk 0:01:32]}  Qc7 {[%clk 0:01:57]} 19. Ngh3 {[%clk 0:01:25]}  h6 {[%clk 0:01:42]} 20. Be3 {[%clk 0:01:17]}  d4 {[%clk 0:01:21]} 21. cxd4 {[%clk 0:01:09]}  cxd4 {[%clk 0:01:20]} 22. Bd2 {[%clk 0:01:08]}  g5 {[%clk 0:01:16]} 23. hxg5 {[%clk 0:01:01]}  hxg5 {[%clk 0:01:17]} 24. Nd3 {[%clk 0:00:45]}  Rf3 {[%clk 0:01:01]} 25. Nxg5 {[%clk 0:00:27]}  Rxg3+ {[%clk 0:00:55]} 26. fxg3 {[%clk 0:00:26]}  Qxg3+ {[%clk 0:00:54]} 27. Kh1 {[%clk 0:00:27]}  Qh4+ {[%clk 0:00:51]} 28. Kg2 {[%clk 0:00:24]}  Bxg5 {[%clk 0:00:40]} 29. e7 {[%clk 0:00:13]}  Nxe7 {[%clk 0:00:29]} 30. Rxe7 {[%clk 0:00:13]}  Bxe7 {[%clk 0:00:23]} 31. Qe2 {[%clk 0:00:13]}  Bd6 {[%clk 0:00:19]} 32. Rh1 {[%clk 0:00:12]}  Qg3# {[%clk 0:00:18]} 0-1


[Site "https://www.chess.com"]

[Event "Titled Tuesday Blitz May 4 2021"]
[White "Bernadskiy, Vitaliy"]
[Black "Gonzalez, Francisco Silva"]
[WhiteFideId "14100371"]
[BlackFideId "1512285"]
[WhiteElo "2534"]
[BlackElo "2159"]
[Result "1-0"]
[Round "01"]
[TimeControl "180+1"]
[Date "2021.05.04"]
[WhiteClock "0:00:34"]
[BlackClock "0:00:54"]

1. e4 {[%clk 0:03:00]}  e5 {[%clk 0:02:58]} 2. Nf3 {[%clk 0:03:00]}  Nc6 {[%clk 0:02:59]} 3. d4 {[%clk 0:03:00]}  exd4 {[%clk 0:02:58]} 4. Nxd4 {[%clk 0:03:01]}  Bc5 {[%clk 0:02:57]} 5. Nb3 {[%clk 0:03:00]}  Bb6 {[%clk 0:02:57]} 6. Nc3 {[%clk 0:03:01]}  Nge7 {[%clk 0:02:57]} 7. Qe2 {[%clk 0:03:01]}  d6 {[%clk 0:02:57]} 8. Be3 {[%clk 0:03:01]}  O-O {[%clk 0:02:58]} 9. O-O-O {[%clk 0:03:00]}  f5 {[%clk 0:02:58]} 10. f4 {[%clk 0:02:55]}  Qe8 {[%clk 0:02:57]} 11. g3 {[%clk 0:02:53]}  Qf7 {[%clk 0:02:57]} 12. Bg2 {[%clk 0:02:52]}  Re8 {[%clk 0:02:56]} 13. Kb1 {[%clk 0:02:47]}  Be6 {[%clk 0:02:56]} 14. Rhe1 {[%clk 0:02:39]}  Na5 {[%clk 0:02:55]} 15. Bxb6 {[%clk 0:02:32]}  axb6 {[%clk 0:02:53]} 16. e5 {[%clk 0:02:24]}  Nec6 {[%clk 0:02:44]} 17. Nd5 {[%clk 0:02:01]}  dxe5 {[%clk 0:02:43]} 18. fxe5 {[%clk 0:02:02]}  Nxb3 {[%clk 0:02:37]} 19. axb3 {[%clk 0:02:03]}  Ra5 {[%clk 0:02:37]} 20. c4 {[%clk 0:01:59]}  Rea8 {[%clk 0:02:35]} 21. Qd2 {[%clk 0:01:41]}  f4 {[%clk 0:02:32]} 22. Be4 {[%clk 0:01:12]}  fxg3 {[%clk 0:02:24]} 23. hxg3 {[%clk 0:01:13]}  Bf5 {[%clk 0:02:19]} 24. Qf4 {[%clk 0:01:05]}  Bxe4+ {[%clk 0:01:56]} 25. Rxe4 {[%clk 0:01:06]}  Qg6 {[%clk 0:01:52]} 26. e6 {[%clk 0:00:56]}  Rxd5 {[%clk 0:01:33]} 27. cxd5 {[%clk 0:00:52]}  Rf8 {[%clk 0:01:24]} 28. Qg4 {[%clk 0:00:45]}  Ne5 {[%clk 0:01:17]} 29. Qxg6 {[%clk 0:00:43]}  Nxg6 {[%clk 0:01:18]} 30. d6 {[%clk 0:00:42]}  cxd6 {[%clk 0:01:18]} 31. Rxd6 {[%clk 0:00:42]}  Re8 {[%clk 0:01:19]} 32. e7 {[%clk 0:00:39]}  Kf7 {[%clk 0:01:18]} 33. Rxb6 {[%clk 0:00:39]}  Nxe7 {[%clk 0:01:02]} 34. Rxb7 {[%clk 0:00:39]}  Kf6 {[%clk 0:01:02]} 35. b4 {[%clk 0:00:38]}  h5 {[%clk 0:01:03]} 36. b5 {[%clk 0:00:38]}  g5 {[%clk 0:01:03]} 37. b6 {[%clk 0:00:37]}  g4 {[%clk 0:01:03]} 38. Rbxe7 {[%clk 0:00:37]}  Rc8 {[%clk 0:01:02]} 39. b7 {[%clk 0:00:36]}  Rb8 {[%clk 0:01:02]} 40. Rh7 {[%clk 0:00:35]}  Kf5 {[%clk 0:01:01]} 41. Rb4 {[%clk 0:00:35]}  Kg6 {[%clk 0:01:01]} 42. Rc7 {[%clk 0:00:34]}  Kf5 {[%clk 0:00:58]} 43. Rc8 {[%clk 0:00:34]}  Rxb7 {[%clk 0:00:56]} 44. Rxb7 {[%clk 0:00:34]}  Ke4 {[%clk 0:00:56]} 45. Rf8 {[%clk 0:00:34]}  h4 {[%clk 0:00:56]} 46. Re7+ {[%clk 0:00:34]}  Kd3 {[%clk 0:00:56]} 47. Rd8+ {[%clk 0:00:34]}  Kc4 {[%clk 0:00:55]} 48. Rc7+ {[%clk 0:00:34]}  Kb5 {[%clk 0:00:56]} 49. Rb8+ {[%clk 0:00:35]}  Ka6 {[%clk 0:00:55]} 50. Rc3 {[%clk 0:00:35]}  Ka7 {[%clk 0:00:54]} 51. Rb4 {[%clk 0:00:34]} 1-0


[Site "https://www.chess.com"]

[Event "Titled Tuesday Blitz May 4 2021"]
[White "Bommini, Mounika Akshaya"]
[Black "Ozkan, Ervin"]
[WhiteFideId "25019872"]
[BlackFideId "6306004"]
[WhiteElo "1610"]
[BlackElo "2226"]
[Result "0-1"]
[Round "01"]
[TimeControl "180+1"]
[Date "2021.05.04"]
[WhiteClock "0:00:12"]
[BlackClock "0:00:32"]

1. d4 {[%clk 0:02:59]}  d5 {[%clk 0:02:59]} 2. Nc3 {[%clk 0:02:59]}  Nf6 {[%clk 0:02:59]} 3. Bf4 {[%clk 0:02:59]}  e6 {[%clk 0:02:57]} 4. e3 {[%clk 0:02:59]}  Bb4 {[%clk 0:02:54]} 5. a3 {[%clk 0:02:56]}  Bxc3+ {[%clk 0:02:53]} 6. bxc3 {[%clk 0:02:57]}  c5 {[%clk 0:02:53]} 7. g4 {[%clk 0:02:53]}  Qa5 {[%clk 0:02:41]} 8. Ne2 {[%clk 0:02:42]}  Nc6 {[%clk 0:02:14]} 9. f3 {[%clk 0:02:31]}  b6 {[%clk 0:02:10]} 10. Qd2 {[%clk 0:02:15]}  Ba6 {[%clk 0:02:08]} 11. Nc1 {[%clk 0:02:04]}  Bxf1 {[%clk 0:02:04]} 12. Rxf1 {[%clk 0:02:03]}  Qa6 {[%clk 0:01:34]} 13. Qe2 {[%clk 0:01:56]}  Qa4 {[%clk 0:01:31]} 14. Nd3 {[%clk 0:01:46]}  Nd7 {[%clk 0:01:25]} 15. Bd6 {[%clk 0:01:40]}  Qa5 {[%clk 0:01:15]} 16. Qd2 {[%clk 0:01:36]}  Rc8 {[%clk 0:01:12]} 17. Kf2 {[%clk 0:01:13]}  cxd4 {[%clk 0:01:10]} 18. exd4 {[%clk 0:01:05]}  Nxd4 {[%clk 0:00:40]} 19. Bb4 {[%clk 0:01:01]}  Qa4 {[%clk 0:00:40]} 20. Nb2 {[%clk 0:00:41]}  Qxc2 {[%clk 0:00:39]} 21. Qxc2 {[%clk 0:00:40]}  Nxc2 {[%clk 0:00:39]} 22. Rac1 {[%clk 0:00:39]}  Nxb4 {[%clk 0:00:38]} 23. cxb4 {[%clk 0:00:39]}  Ke7 {[%clk 0:00:38]} 24. Nd3 {[%clk 0:00:37]}  Kd6 {[%clk 0:00:37]} 25. Ke3 {[%clk 0:00:35]}  Ne5 {[%clk 0:00:36]} 26. Nxe5 {[%clk 0:00:27]}  Kxe5 {[%clk 0:00:37]} 27. f4+ {[%clk 0:00:27]}  Kd6 {[%clk 0:00:37]} 28. Kd4 {[%clk 0:00:27]}  f6 {[%clk 0:00:37]} 29. Rfe1 {[%clk 0:00:24]}  e5+ {[%clk 0:00:34]} 30. fxe5+ {[%clk 0:00:23]}  fxe5+ {[%clk 0:00:35]} 31. Kd3 {[%clk 0:00:21]}  Rhf8 {[%clk 0:00:33]} 32. Rxc8 {[%clk 0:00:16]}  Rxc8 {[%clk 0:00:33]} 33. Rf1 {[%clk 0:00:16]}  e4+ {[%clk 0:00:33]} 34. Kd4 {[%clk 0:00:14]}  Rc4+ {[%clk 0:00:32]} 35. Ke3 {[%clk 0:00:14]}  Rc3+ {[%clk 0:00:33]} 36. Kd2 {[%clk 0:00:14]}  Rxa3 {[%clk 0:00:33]} 37. Rf7 {[%clk 0:00:13]}  d4 {[%clk 0:00:31]} 38. Rxg7 {[%clk 0:00:13]}  Ra2+ {[%clk 0:00:31]} 39. Kd1 {[%clk 0:00:12]}  e3 {[%clk 0:00:32]} 0-1


[Site "https://www.chess.com"]

[Event "Titled Tuesday Blitz May 4 2021"]
[White "Bon, Michael"]
[Black "Bologan, Victor"]
[WhiteFideId "620696"]
[BlackFideId "13900048"]
[WhiteElo "2436"]
[BlackElo "2511"]
[Result "1-0"]
[Round "01"]
[TimeControl "180+1"]
[Date "2021.05.04"]
[WhiteClock "0:00:05"]
[BlackClock "0:00:07"]

1. e4 {[%clk 0:03:00]}  c5 {[%clk 0:02:58]} 2. Nf3 {[%clk 0:02:59]}  d6 {[%clk 0:02:58]} 3. d4 {[%clk 0:02:58]}  cxd4 {[%clk 0:02:58]} 4. Nxd4 {[%clk 0:02:59]}  Nf6 {[%clk 0:02:58]} 5. Nc3 {[%clk 0:02:58]}  a6 {[%clk 0:02:58]} 6. Bg5 {[%clk 0:02:57]}  e6 {[%clk 0:02:57]} 7. f4 {[%clk 0:02:56]}  Qc7 {[%clk 0:02:56]} 8. Bxf6 {[%clk 0:02:54]}  gxf6 {[%clk 0:02:56]} 9. Qd2 {[%clk 0:02:42]}  b5 {[%clk 0:02:53]} 10. Bd3 {[%clk 0:02:40]}  Bb7 {[%clk 0:02:52]} 11. O-O-O {[%clk 0:02:35]}  Nd7 {[%clk 0:02:51]} 12. Rhe1 {[%clk 0:02:33]}  O-O-O {[%clk 0:02:44]} 13. f5 {[%clk 0:02:25]}  Nc5 {[%clk 0:02:29]} 14. a3 {[%clk 0:02:17]}  h5 {[%clk 0:02:26]} 15. Kb1 {[%clk 0:02:10]}  e5 {[%clk 0:02:18]} 16. Nb3 {[%clk 0:01:49]}  Kb8 {[%clk 0:02:12]} 17. Bf1 {[%clk 0:01:01]}  Bh6 {[%clk 0:01:52]} 18. Qf2 {[%clk 0:00:43]}  Nxb3 {[%clk 0:01:43]} 19. cxb3 {[%clk 0:00:43]}  Qc5 {[%clk 0:01:42]} 20. Qe2 {[%clk 0:00:28]}  b4 {[%clk 0:01:23]} 21. Nd5 {[%clk 0:00:19]}  bxa3 {[%clk 0:01:16]} 22. b4 {[%clk 0:00:19]}  Qc6 {[%clk 0:01:01]} 23. bxa3 {[%clk 0:00:18]}  Qa4 {[%clk 0:00:50]} 24. Qc2 {[%clk 0:00:17]}  Qxc2+ {[%clk 0:00:42]} 25. Kxc2 {[%clk 0:00:17]}  Rc8+ {[%clk 0:00:41]} 26. Kb3 {[%clk 0:00:17]}  Bg5 {[%clk 0:00:38]} 27. Bc4 {[%clk 0:00:16]}  h4 {[%clk 0:00:34]} 28. Rd3 {[%clk 0:00:16]}  Rc6 {[%clk 0:00:30]} 29. Re2 {[%clk 0:00:16]}  Rhc8 {[%clk 0:00:29]} 30. Rc2 {[%clk 0:00:16]}  Rh8 {[%clk 0:00:29]} 31. Rdc3 {[%clk 0:00:15]}  Bf4 {[%clk 0:00:27]} 32. Nxf4 {[%clk 0:00:13]}  exf4 {[%clk 0:00:27]} 33. Bd5 {[%clk 0:00:06]}  Rxc3+ {[%clk 0:00:26]} 34. Rxc3 {[%clk 0:00:07]}  Rg8 {[%clk 0:00:25]} 35. Bxb7 {[%clk 0:00:06]}  Kxb7 {[%clk 0:00:25]} 36. Rh3 {[%clk 0:00:06]}  Rxg2 {[%clk 0:00:23]} 37. Rxh4 {[%clk 0:00:06]}  f3 {[%clk 0:00:23]} 38. h3 {[%clk 0:00:06]}  Re2 {[%clk 0:00:20]} 39. Rf4 {[%clk 0:00:06]}  f2 {[%clk 0:00:18]} 40. Ka4 {[%clk 0:00:05]}  Kb6 {[%clk 0:00:17]} 41. h4 {[%clk 0:00:05]}  Rxe4 {[%clk 0:00:17]} 42. Rxf2 {[%clk 0:00:05]}  Rxh4 {[%clk 0:00:17]} 43. Rd2 {[%clk 0:00:04]}  Kc6 {[%clk 0:00:14]} 44. Ka5 {[%clk 0:00:05]}  Rh3 {[%clk 0:00:14]} 45. a4 {[%clk 0:00:05]}  Rh4 {[%clk 0:00:14]} 46. b5+ {[%clk 0:00:04]}  axb5 {[%clk 0:00:13]} 47. axb5+ {[%clk 0:00:05]}  Kc7 {[%clk 0:00:13]} 48. b6+ {[%clk 0:00:04]}  Kc6 {[%clk 0:00:12]} 49. Rc2+ {[%clk 0:00:04]}  Kb7 {[%clk 0:00:12]} 50. Rc7+ {[%clk 0:00:04]}  Kb8 {[%clk 0:00:13]} 51. Rxf7 {[%clk 0:00:05]}  Rd4 {[%clk 0:00:11]} 52. Rxf6 {[%clk 0:00:05]}  Rd1 {[%clk 0:00:11]} 53. Kb5 {[%clk 0:00:05]}  d5 {[%clk 0:00:11]} 54. Kc6 {[%clk 0:00:05]}  Rc1+ {[%clk 0:00:10]} 55. Kxd5 {[%clk 0:00:05]}  Rc8 {[%clk 0:00:09]} 56. Ke6 {[%clk 0:00:05]}  Kb7 {[%clk 0:00:09]} 57. Kf7 {[%clk 0:00:05]}  Rf8+ {[%clk 0:00:07]} 58. Kxf8 {[%clk 0:00:05]} 1-0


[Site "https://www.chess.com"]

[Event "Titled Tuesday Blitz May 4 2021"]
[White "Brunner, Nicolas"]
[Black "Ptacnikova, Lenka"]
[WhiteFideId "620246"]
[BlackFideId "305650"]
[WhiteElo "2372"]
[BlackElo "1984"]
[Result "0-1"]
[Round "01"]
[TimeControl "180+1"]
[Date "2021.05.04"]
[WhiteClock "0:00:01"]
[BlackClock "0:00:06"]

1. d4 {[%clk 0:02:57]}  Nf6 {[%clk 0:01:19]} 2. c4 {[%clk 0:02:57]}  e6 {[%clk 0:01:19]} 3. g3 {[%clk 0:02:57]}  Bb4+ {[%clk 0:01:19]} 4. Bd2 {[%clk 0:02:56]}  Be7 {[%clk 0:01:19]} 5. Nf3 {[%clk 0:02:53]}  d5 {[%clk 0:01:19]} 6. Bg2 {[%clk 0:02:49]}  c5 {[%clk 0:01:19]} 7. dxc5 {[%clk 0:02:30]}  Bxc5 {[%clk 0:01:16]} 8. O-O {[%clk 0:02:29]}  O-O {[%clk 0:01:15]} 9. cxd5 {[%clk 0:02:17]}  Nxd5 {[%clk 0:01:15]} 10. e4 {[%clk 0:02:16]}  Nb4 {[%clk 0:01:15]} 11. Bxb4 {[%clk 0:01:46]}  Bxb4 {[%clk 0:01:13]} 12. Qb3 {[%clk 0:01:46]}  Qb6 {[%clk 0:01:11]} 13. Nc3 {[%clk 0:01:43]}  Nc6 {[%clk 0:01:09]} 14. a3 {[%clk 0:01:39]}  Bc5 {[%clk 0:01:06]} 15. Qxb6 {[%clk 0:01:24]}  Bxb6 {[%clk 0:01:06]} 16. Rfd1 {[%clk 0:01:24]}  e5 {[%clk 0:01:02]} 17. Nd5 {[%clk 0:01:23]}  Bd4 {[%clk 0:00:59]} 18. Nxd4 {[%clk 0:01:19]}  Nxd4 {[%clk 0:00:57]} 19. Bf1 {[%clk 0:01:17]}  Bg4 {[%clk 0:00:51]} 20. Rd3 {[%clk 0:00:56]}  f6 {[%clk 0:00:22]} 21. Rc3 {[%clk 0:00:50]}  Rf7 {[%clk 0:00:20]} 22. Rac1 {[%clk 0:00:46]}  Rd8 {[%clk 0:00:19]} 23. Bc4 {[%clk 0:00:42]}  Kf8 {[%clk 0:00:18]} 24. Kg2 {[%clk 0:00:34]}  Be6 {[%clk 0:00:16]} 25. f3 {[%clk 0:00:20]}  Rfd7 {[%clk 0:00:15]} 26. Kf2 {[%clk 0:00:17]}  Rd6 {[%clk 0:00:14]} 27. Ba2 {[%clk 0:00:12]}  Rc6 {[%clk 0:00:12]} 28. Rxc6 {[%clk 0:00:08]}  Nxc6 {[%clk 0:00:12]} 29. Ke3 {[%clk 0:00:07]}  Kf7 {[%clk 0:00:12]} 30. f4 {[%clk 0:00:07]}  exf4+ {[%clk 0:00:11]} 31. gxf4 {[%clk 0:00:07]}  g6 {[%clk 0:00:09]} 32. f5 {[%clk 0:00:04]}  gxf5 {[%clk 0:00:09]} 33. exf5 {[%clk 0:00:04]}  Bxd5 {[%clk 0:00:09]} 34. Bxd5+ {[%clk 0:00:03]}  Rxd5 {[%clk 0:00:07]} 35. Kf4 {[%clk 0:00:04]}  Rd4+ {[%clk 0:00:07]} 36. Kg3 {[%clk 0:00:04]}  Rd2 {[%clk 0:00:07]} 37. b4 {[%clk 0:00:03]}  Rd3+ {[%clk 0:00:07]} 38. Kf4 {[%clk 0:00:03]}  Rxa3 {[%clk 0:00:07]} 39. b5 {[%clk 0:00:04]}  Ne7 {[%clk 0:00:07]} 40. Rc7 {[%clk 0:00:04]}  b6 {[%clk 0:00:07]} 41. h4 {[%clk 0:00:02]}  Rb3 {[%clk 0:00:07]} 42. Rxa7 {[%clk 0:00:02]}  Rxb5 {[%clk 0:00:08]} 43. Kg4 {[%clk 0:00:02]}  Rxf5 {[%clk 0:00:07]} 44. Rb7 {[%clk 0:00:02]}  Rb5 {[%clk 0:00:07]} 45. h5 {[%clk 0:00:01]}  h6 {[%clk 0:00:06]} 46. Kh4 {[%clk 0:00:01]}  Ke6 {[%clk 0:00:06]} 47. Kg4 {[%clk 0:00:01]}  Rb4+ {[%clk 0:00:06]} 0-1


[Site "https://www.chess.com"]

[Event "Titled Tuesday Blitz May 4 2021"]
[White "Bures, Vit"]
[Black "Prithu Gupta"]
[WhiteFideId "309052"]
[BlackFideId "46618546"]
[WhiteElo "2131"]
[BlackElo "1775"]
[Result "1-0"]
[Round "01"]
[TimeControl "180+1"]
[Date "2021.05.04"]
[WhiteClock "0:00:05"]
[BlackClock "0:00:09"]

1. d4 {[%clk 0:03:00]}  Nf6 {[%clk 0:02:59]} 2. c4 {[%clk 0:02:59]}  e6 {[%clk 0:02:53]} 3. Nc3 {[%clk 0:02:59]}  Bb4 {[%clk 0:02:44]} 4. e3 {[%clk 0:02:57]}  O-O {[%clk 0:02:43]} 5. Ne2 {[%clk 0:02:56]}  b6 {[%clk 0:02:42]} 6. a3 {[%clk 0:02:55]}  Bxc3+ {[%clk 0:02:42]} 7. Nxc3 {[%clk 0:02:54]}  Bb7 {[%clk 0:02:41]} 8. Bd3 {[%clk 0:02:52]}  c5 {[%clk 0:02:40]} 9. d5 {[%clk 0:02:45]}  exd5 {[%clk 0:02:39]} 10. cxd5 {[%clk 0:02:45]}  d6 {[%clk 0:02:40]} 11. O-O {[%clk 0:02:43]}  a6 {[%clk 0:02:40]} 12. a4 {[%clk 0:02:40]}  Nbd7 {[%clk 0:02:40]} 13. e4 {[%clk 0:02:40]}  Re8 {[%clk 0:02:35]} 14. Bf4 {[%clk 0:02:36]}  c4 {[%clk 0:02:23]} 15. Bc2 {[%clk 0:02:20]}  Nc5 {[%clk 0:02:23]} 16. Qd4 {[%clk 0:02:12]}  Rc8 {[%clk 0:02:18]} 17. Bg5 {[%clk 0:02:06]}  Qe7 {[%clk 0:02:10]} 18. Rae1 {[%clk 0:01:57]}  Qe5 {[%clk 0:02:10]} 19. Qxe5 {[%clk 0:01:46]}  dxe5 {[%clk 0:02:11]} 20. Bxf6 {[%clk 0:01:29]}  gxf6 {[%clk 0:02:10]} 21. Re3 {[%clk 0:01:29]}  Kf8 {[%clk 0:02:08]} 22. f4 {[%clk 0:01:16]}  b5 {[%clk 0:01:22]} 23. axb5 {[%clk 0:01:13]}  axb5 {[%clk 0:01:21]} 24. Nxb5 {[%clk 0:01:12]}  Rb8 {[%clk 0:00:55]} 25. Nd6 {[%clk 0:00:58]}  Re7 {[%clk 0:00:23]} 26. Nxc4 {[%clk 0:00:44]}  Ba6 {[%clk 0:00:23]} 27. b3 {[%clk 0:00:44]}  f5 {[%clk 0:00:19]} 28. fxe5 {[%clk 0:00:28]}  Bxc4 {[%clk 0:00:16]} 29. bxc4 {[%clk 0:00:27]}  fxe4 {[%clk 0:00:17]} 30. e6 {[%clk 0:00:15]}  Rb4 {[%clk 0:00:17]} 31. Bxe4 {[%clk 0:00:13]}  Rxc4 {[%clk 0:00:17]} 32. Bxh7 {[%clk 0:00:14]}  Rd4 {[%clk 0:00:17]} 33. Bg6 {[%clk 0:00:10]}  Rxd5 {[%clk 0:00:16]} 34. Bxf7 {[%clk 0:00:10]}  Kg7 {[%clk 0:00:16]} 35. Rg3+ {[%clk 0:00:10]}  Kh7 {[%clk 0:00:16]} 36. Rf4 {[%clk 0:00:06]}  Rd1+ {[%clk 0:00:14]} 37. Kf2 {[%clk 0:00:03]}  Nd3+ {[%clk 0:00:15]} 38. Ke2 {[%clk 0:00:03]}  Nxf4+ {[%clk 0:00:12]} 39. Kxd1 {[%clk 0:00:03]}  Nxe6 {[%clk 0:00:13]} 40. Bxe6 {[%clk 0:00:02]}  Rxe6 {[%clk 0:00:13]} 41. Kd2 {[%clk 0:00:03]}  Rd6+ {[%clk 0:00:13]} 42. Ke2 {[%clk 0:00:02]}  Re6+ {[%clk 0:00:14]} 43. Kf2 {[%clk 0:00:03]}  Rf6+ {[%clk 0:00:14]} 44. Rf3 {[%clk 0:00:03]}  Ra6 {[%clk 0:00:14]} 45. h4 {[%clk 0:00:02]}  Ra4 {[%clk 0:00:14]} 46. Kg3 {[%clk 0:00:02]}  Kh6 {[%clk 0:00:14]} 47. Kh3 {[%clk 0:00:01]}  Kg6 {[%clk 0:00:08]} 48. g4 {[%clk 0:00:02]}  Kh6 {[%clk 0:00:09]} 49. Rb3 {[%clk 0:00:02]}  Kg6 {[%clk 0:00:09]} 50. Rb6+ {[%clk 0:00:02]}  Kg7 {[%clk 0:00:09]} 51. h5 {[%clk 0:00:03]}  Ra3+ {[%clk 0:00:08]} 52. Kh4 {[%clk 0:00:03]}  Ra4 {[%clk 0:00:09]} 53. Rb7+ {[%clk 0:00:03]}  Kh6 {[%clk 0:00:09]} 54. Rb6+ {[%clk 0:00:03]}  Kg7 {[%clk 0:00:09]} 55. h6+ {[%clk 0:00:04]}  Kh7 {[%clk 0:00:09]} 56. Kh5 {[%clk 0:00:04]}  Ra5+ {[%clk 0:00:10]} 57. g5 {[%clk 0:00:05]}  Rc5 {[%clk 0:00:09]} 58. Rb7+ {[%clk 0:00:05]}  Kh8 {[%clk 0:00:10]} 59. Re7 {[%clk 0:00:03]}  Kg8 {[%clk 0:00:09]} 60. Kg6 {[%clk 0:00:03]}  Rc6+ {[%clk 0:00:09]} 61. Kf5 {[%clk 0:00:04]}  Rc5+ {[%clk 0:00:08]} 62. Kf6 {[%clk 0:00:04]}  Rc6+ {[%clk 0:00:09]} 63. Re6 {[%clk 0:00:04]}  Rc8 {[%clk 0:00:09]} 64. g6 {[%clk 0:00:04]}  Rf8+ {[%clk 0:00:09]} 65. Kg5 {[%clk 0:00:05]} 1-0


[Site "https://www.chess.com"]

[Event "Titled Tuesday Blitz May 4 2021"]
[White "Csonka, Balazs"]
[Black "Chernomordik, Pavel"]
[WhiteFideId "742910"]
[BlackFideId "2804530"]
[WhiteElo "2404"]
[BlackElo "2299"]
[Result "1-0"]
[Round "01"]
[TimeControl "180+1"]
[Date "2021.05.04"]
[WhiteClock "0:00:04"]
[BlackClock "0:00:01"]

1. d4 {[%clk 0:03:00]}  g6 {[%clk 0:03:00]} 2. e4 {[%clk 0:02:56]}  Bg7 {[%clk 0:03:00]} 3. c4 {[%clk 0:02:56]}  Nc6 {[%clk 0:02:59]} 4. Be3 {[%clk 0:02:55]}  e5 {[%clk 0:02:58]} 5. Ne2 {[%clk 0:02:54]}  exd4 {[%clk 0:02:56]} 6. Nxd4 {[%clk 0:02:53]}  Qf6 {[%clk 0:02:56]} 7. Nxc6 {[%clk 0:02:29]}  dxc6 {[%clk 0:02:54]} 8. Nc3 {[%clk 0:02:25]}  Qe7 {[%clk 0:02:51]} 9. Bd3 {[%clk 0:02:02]}  Nf6 {[%clk 0:02:47]} 10. h3 {[%clk 0:02:00]}  O-O {[%clk 0:02:44]} 11. O-O {[%clk 0:01:59]}  Rd8 {[%clk 0:02:38]} 12. Qe2 {[%clk 0:01:55]}  Nd7 {[%clk 0:02:27]} 13. f4 {[%clk 0:01:18]}  Nc5 {[%clk 0:02:25]} 14. Bc2 {[%clk 0:01:18]}  f5 {[%clk 0:02:16]} 15. e5 {[%clk 0:01:17]}  Ne6 {[%clk 0:02:12]} 16. Rad1 {[%clk 0:01:11]}  Bd7 {[%clk 0:02:11]} 17. g4 {[%clk 0:00:59]}  Rf8 {[%clk 0:02:03]} 18. g5 {[%clk 0:00:53]}  Be8 {[%clk 0:01:59]} 19. h4 {[%clk 0:00:49]}  Qb4 {[%clk 0:01:51]} 20. Bb3 {[%clk 0:00:35]}  Bf7 {[%clk 0:01:42]} 21. Qf2 {[%clk 0:00:27]}  b6 {[%clk 0:01:36]} 22. Rd7 {[%clk 0:00:19]}  Be8 {[%clk 0:01:34]} 23. Rd2 {[%clk 0:00:17]}  Qe7 {[%clk 0:01:29]} 24. c5 {[%clk 0:00:17]}  Kh8 {[%clk 0:01:23]} 25. Rfd1 {[%clk 0:00:15]}  bxc5 {[%clk 0:01:11]} 26. Bxe6 {[%clk 0:00:07]}  Qxe6 {[%clk 0:01:10]} 27. Bxc5 {[%clk 0:00:08]}  Rg8 {[%clk 0:01:09]} 28. b3 {[%clk 0:00:08]}  Bf8 {[%clk 0:01:02]} 29. Na4 {[%clk 0:00:08]}  Be7 {[%clk 0:00:49]} 30. Bxe7 {[%clk 0:00:07]}  Qxe7 {[%clk 0:00:49]} 31. Qc5 {[%clk 0:00:08]}  Qe6 {[%clk 0:00:44]} 32. Qd4 {[%clk 0:00:08]}  c5 {[%clk 0:00:40]} 33. Nxc5 {[%clk 0:00:08]}  Qc6 {[%clk 0:00:34]} 34. e6+ {[%clk 0:00:06]}  Rg7 {[%clk 0:00:33]} 35. Qe3 {[%clk 0:00:06]}  Re7 {[%clk 0:00:26]} 36. Rd8 {[%clk 0:00:05]}  Rxd8 {[%clk 0:00:24]} 37. Rxd8 {[%clk 0:00:06]}  Kg8 {[%clk 0:00:21]} 38. Kh2 {[%clk 0:00:05]}  Qb5 {[%clk 0:00:19]} 39. Qd4 {[%clk 0:00:03]}  Qf1 {[%clk 0:00:16]} 40. Kg3 {[%clk 0:00:02]}  Qe1+ {[%clk 0:00:15]} 41. Qf2 {[%clk 0:00:02]}  Qc3+ {[%clk 0:00:14]} 42. Kh2 {[%clk 0:00:02]}  Qc1 {[%clk 0:00:11]} 43. Rd2 {[%clk 0:00:02]}  Qc3 {[%clk 0:00:09]} 44. Qd4 {[%clk 0:00:01]}  Qf3 {[%clk 0:00:08]} 45. Nd7 {[%clk 0:00:02]}  Bxd7 {[%clk 0:00:06]} 46. exd7 {[%clk 0:00:03]}  Rxd7 {[%clk 0:00:05]} 47. Qxd7 {[%clk 0:00:02]}  Qxf4+ {[%clk 0:00:06]} 48. Kg2 {[%clk 0:00:03]}  Qe4+ {[%clk 0:00:05]} 49. Kf2 {[%clk 0:00:03]}  Qf4+ {[%clk 0:00:04]} 50. Ke2 {[%clk 0:00:04]}  Qg4+ {[%clk 0:00:03]} 51. Kd3 {[%clk 0:00:03]}  Qe4+ {[%clk 0:00:03]} 52. Kc3 {[%clk 0:00:04]}  Qe5+ {[%clk 0:00:02]} 53. Qd4 {[%clk 0:00:04]}  Qa5+ {[%clk 0:00:01]} 54. Kb2 {[%clk 0:00:04]} 1-0


[Site "https://www.chess.com"]